bitfinex/quotes_BTCUSD_20240826
["timestamp","ask_amount","ask_price","bid_price","bid_amount"]
[1724708217004,0.0009064,63187.0,63186.0,0.46836906]
[1724708217245,0.0009064,63187.0,63186.0,0.78489406]
[1724708217867,0.0009064,63187.0,63186.0,0.78789406]
[1724708218025,0.0008564,63187.0,63186.0,0.79089406]
[1724708233189,0.0008564,63187.0,63186.0,0.47519306]
[1724708233401,0.0008564,63187.0,63186.0,0.79171806]
[1724708233782,0.0008564,63187.0,63186.0,1.10824306]
[1724708234705,0.0008564,63187.0,63186.0,0.79171806]
[1724708240532,0.0008564,63187.0,63186.0,0.47519306]
[1724708240732,0.0008564,63187.0,63186.0,0.31693106]
[1724708240733,0.01550069,63187.0,63186.0,0.31693106]
[1724708241407,0.01550069,63187.0,63186.0,0.47519306]
[1724708241725,0.19719041,63187.0,63186.0,0.31693106]
[1724708243284,0.20948675,63187.0,63186.0,0.31693106]
[1724708243489,0.84252675,63187.0,63186.0,0.006824]
[1724708243719,1.29144675,63187.0,63186.0,0.006824]
[1724708243911,1.29144531,63187.0,63186.0,0.006824]
[1724708244422,1.29144531,63187.0,63186.0,0.000824]
[1724708244623,1.29544531,63187.0,63186.0,0.000824]
[1724708244984,1.29144531,63187.0,63186.0,0.000824]
[1724708245392,1.29844531,63187.0,63186.0,0.000824]
[1724708245711,1.40314531,63187.0,63186.0,0.000824]
[1724708246430,1.40614531,63187.0,63186.0,0.000824]
[1724708246830,1.40314531,63187.0,63186.0,0.000824]
[1724708247260,1.40914531,63187.0,63186.0,0.001824]
[1724708247468,1.40914531,63187.0,63173.0,0.04945911]
[1724708247469,0.1366,63186.0,63173.0,0.04945911]
[1724708247668,1.039262,63174.0,63173.0,0.04945911]
[1724708247865,1.40621591,63174.0,63173.0,0.04945911]
[1724708248093,0.158326,63161.0,63156.0,0.292736]
[1724708248290,0.01464354,63160.0,63157.0,0.31451201]
[1724708248583,0.01464354,63159.0,63157.0,0.31451201]
[1724708248784,0.01464354,63158.0,63157.0,0.31451201]
[1724708249148,0.158326,63161.0,63157.0,0.15617801]
[1724708249353,0.01464354,63160.0,63157.0,0.15617801]
[1724708249531,0.01464354,63160.0,63158.0,0.07730986]
[1724708250651,0.17297154,63160.0,63158.0,0.07730986]
[1724708250860,0.01464354,63159.0,63158.0,0.07730986]
[1724708252324,0.158326,63161.0,63158.0,0.07730986]
[1724708252619,0.01464828,63160.0,63158.0,0.07730986]
[1724708252769,0.01464828,63160.0,63159.0,0.01972084]
[1724708252770,0.158328,63160.0,63159.0,0.01972084]
[1724708253283,0.17297845,63160.0,63159.0,0.01972084]
[1724708253533,0.158328,63160.0,63159.0,0.01972084]
[1724708254451,0.158328,63160.0,63159.0,0.02072084]
[1724708254968,0.158328,63160.0,63159.0,0.001]
[1724708255360,0.15813752,63160.0,63159.0,0.001]
[1724708255674,0.15833,63159.0,63157.0,0.15617801]
[1724708257017,0.15833,63159.0,63157.0,0.15817801]
[1724708263067,0.158333,63158.0,63157.0,0.15817801]
[1724708263266,0.158333,63158.0,63157.0,0.23577037]
[1724708264009,0.474987,63160.0,63157.0,0.23577037]
[1724708264205,0.316657,63160.0,63157.0,0.23577037]
[1724708264413,0.158331,63159.0,63157.0,0.23577037]
[1724708265030,0.158331,63159.0,63157.0,0.23377037]
[1724708265231,0.158331,63159.0,63158.0,0.01943834]
[1724708266685,0.158331,63159.0,63158.0,0.02143834]
[1724708266904,0.158328,63160.0,63158.0,0.02143834]
[1724708267713,0.15833,63159.0,63158.0,0.02143834]
[1724708267888,0.158326,63161.0,63158.0,0.02143834]
[1724708268097,0.15833,63159.0,63158.0,0.01943834]
[1724708268296,0.01467748,63159.0,63158.0,0.01943834]
[1724708268496,0.01467748,63159.0,63158.0,0.02143834]
[1724708269127,0.158328,63160.0,63158.0,0.01943834]
[1724708269327,0.01467829,63159.0,63158.0,0.02143834]
[1724708270167,0.17300829,63159.0,63158.0,0.01943834]
[1724708271326,0.17300829,63159.0,63158.0,0.02143834]
[1724708271824,0.17300829,63159.0,63158.0,0.01943834]
[1724708272728,0.17300829,63159.0,63158.0,0.02143834]
[1724708272928,0.15833,63159.0,63158.0,0.02143834]
[1724708273157,0.17300186,63159.0,63158.0,0.02143834]
[1724708274174,0.01467186,63159.0,63158.0,0.02143834]
[1724708275143,0.17300186,63159.0,63158.0,0.02143834]
[1724708275361,0.185321,63159.0,63158.0,0.02143834]
[1724708275768,0.026991,63159.0,63158.0,0.02143834]
[1724708276212,0.01467186,63159.0,63158.0,0.02143834]
[1724708276363,0.17300186,63159.0,63158.0,0.02143834]
[1724708277228,0.18532285,63159.0,63158.0,0.02143834]
[1724708278798,0.17301175,63159.0,63158.0,0.02143834]
[1724708279043,0.50200131,63159.0,63158.0,0.02143834]
[1724708279242,0.18534031,63159.0,63158.0,0.02143834]
[1724708280907,0.18534031,63159.0,63158.0,0.12733834]
[1724708281109,0.15833,63159.0,63158.0,0.12733834]
[1724708281312,0.17065682,63159.0,63158.0,0.12733834]
[1724708281547,0.18533649,63159.0,63158.0,0.12733834]
[1724708281709,0.18533797,63159.0,63158.0,0.12733834]
[1724708283417,0.02700797,63159.0,63158.0,0.02143834]
[1724708283540,0.18533797,63159.0,63158.0,0.02143834]
[1724708283743,0.02700797,63159.0,63158.0,0.17761635]
[1724708283960,0.02700797,63159.0,63158.0,0.33594935]
[1724708284525,0.00090751,63160.0,63159.0,0.15833]
[1724708284646,0.00090751,63160.0,63159.0,0.23377037]
[1724708284845,0.02792129,63160.0,63159.0,0.23377037]
[1724708285707,0.02792129,63160.0,63159.0,0.23577037]
[1724708287662,0.02792006,63160.0,63159.0,0.23577037]
[1724708289312,0.18624806,63160.0,63159.0,0.23577037]
[1724708290733,0.18624951,63160.0,63159.0,0.23577037]
[1724708290945,0.50290551,63160.0,63159.0,0.23577037]
[1724708291150,0.50290575,63160.0,63159.0,0.23577037]
[1724708291563,0.50290575,63160.0,63159.0,0.07959236]
[1724708291781,0.50290575,63160.0,63159.0,0.002]
[1724708293448,0.81956175,63160.0,63159.0,0.002]
[1724708293662,1.15632393,63160.0,63159.0,0.002]
[1724708293883,1.06239491,63160.0,63159.0,0.002]
[1724708294099,1.06239367,63160.0,63159.0,0.002]
[1724708294338,1.17969117,63160.0,63159.0,0.002]
[1724708294507,1.1563141,63160.0,63159.0,0.002]
[1724708294718,1.1563141,63160.0,63159.0,0.02746436]
[1724708296317,1.1563141,63160.0,63159.0,0.002]
[1724708296724,1.06239367,63160.0,63159.0,0.002]
[1724708298293,0.8900052,63160.0,63159.0,0.002]
[1724708299098,0.81956051,63160.0,63159.0,0.002]
[1724708300722,0.81956128,63160.0,63159.0,0.002]
[1724708300922,0.81956096,63160.0,63159.0,0.002]
[1724708301335,1.06098597,63160.0,63159.0,0.002]
[1724708301538,1.06101166,63160.0,63159.0,0.002]
[1724708302144,1.06101166,63160.0,63158.0,0.000825]
[1724708302145,0.791652,63159.0,63158.0,0.000825]
[1724708302345,0.88910084,63159.0,63158.0,0.000825]
[1724708303707,0.88910271,63159.0,63158.0,0.000825]
[1724708303908,1.15227192,63159.0,63158.0,0.000825]
[1724708304112,0.88911064,63159.0,63158.0,0.000825]
[1724708304313,0.82066732,63159.0,63158.0,0.000825]
[1724708304522,1.15647302,63159.0,63158.0,0.000825]
[1724708304694,0.89210948,63159.0,63158.0,0.000825]
[1724708304920,0.82166732,63159.0,63158.0,0.000825]
[1724708307472,0.86863079,63159.0,63158.0,0.000825]
[1724708307671,0.86863101,63159.0,63158.0,0.000825]
[1724708307847,0.82166732,63159.0,63158.0,0.000825]
[1724708309875,0.82147733,63159.0,63158.0,0.000825]
[1724708310051,0.79446144,63159.0,63158.0,0.000825]
[1724708310253,0.8214778,63159.0,63158.0,0.000825]
[1724708312081,0.82147604,63159.0,63158.0,0.000825]
[1724708313120,0.82148358,63159.0,63158.0,0.000825]
[1724708314146,0.89194554,63159.0,63158.0,0.000825]
[1724708316769,1.17778042,63159.0,63158.0,0.000825]
[1724708317103,1.15429536,63159.0,63158.0,0.000825]
[1724708317634,0.87960962,63159.0,63158.0,0.000825]
[1724708317833,1.14353992,63159.0,63158.0,0.000825]
[1724708318032,1.05050092,63159.0,63158.0,0.000825]
[1724708318232,0.81005598,63159.0,63158.0,0.000825]
[1724708318479,1.05091495,63159.0,63158.0,0.000825]
[1724708318810,0.88051488,63159.0,63158.0,0.000825]
[1724708319189,1.05105889,63159.0,63158.0,0.000825]
[1724708319395,0.81005598,63159.0,63158.0,0.000825]
[1724708319597,1.1303653,63159.0,63158.0,0.000825]
[1724708320503,1.0364199,63159.0,63158.0,0.000825]
[1724708320705,0.79536784,63159.0,63158.0,0.000825]
[1724708320928,1.13015301,63159.0,63158.0,0.000825]
[1724708321138,1.03620761,63159.0,63158.0,0.000825]
[1724708321515,1.03609849,63159.0,63158.0,0.000825]
[1724708322334,1.03595168,63159.0,63158.0,0.000825]
[1724708323605,1.15335057,63159.0,63158.0,0.000825]
[1724708323799,1.12987072,63159.0,63158.0,0.000825]
[1724708326530,1.55748014,63159.0,63158.0,0.000825]
[1724708326706,1.80288014,63159.0,63158.0,0.000825]
[1724708326905,1.7089611,63159.0,63158.0,0.000825]
[1724708327271,1.70811777,63159.0,63158.0,0.000825]
[1724708328739,2.02477877,63159.0,63158.0,0.000825]
[1724708328942,2.16563051,63159.0,63158.0,0.000825]
[1724708329241,2.16559032,63159.0,63158.0,0.000825]
[1724708329444,2.02477877,63159.0,63158.0,0.000825]
[1724708329631,2.02377877,63159.0,63158.0,0.000825]
[1724708329849,2.17059032,63159.0,63158.0,0.000825]
[1724708330191,2.340513,63159.0,63158.0,0.000825]
[1724708330389,2.334513,63159.0,63158.0,0.000825]
[1724708330641,2.347513,63159.0,63158.0,0.000825]
[1724708330798,2.340513,63159.0,63158.0,0.000825]
[1724708331198,2.17553222,63159.0,63158.0,0.000825]
[1724708331401,2.16854357,63159.0,63158.0,0.000825]
[1724708331610,2.18154357,63159.0,63158.0,0.000825]
[1724708331818,2.04077877,63159.0,63158.0,0.000825]
[1724708332167,2.18143562,63159.0,63158.0,0.000825]
[1724708332330,2.03466351,63159.0,63158.0,0.000825]
[1724708332543,2.18643562,63159.0,63158.0,0.000825]
[1724708332750,2.98581873,63159.0,63158.0,0.000825]
[1724708332955,3.03360315,63159.0,63158.0,0.000825]
[1724708333155,3.04741431,63159.0,63158.0,0.000825]
[1724708333376,3.04741431,63159.0,63157.0,0.00075204]
[1724708333377,1.670497,63158.0,63157.0,0.00075204]
[1724708333597,2.40226921,63158.0,63157.0,0.00075204]
[1724708334982,2.41626921,63158.0,63157.0,0.00075204]
[1724708335880,2.39148479,63158.0,63157.0,0.00075204]
[1724708336275,2.40348479,63158.0,63157.0,0.00075204]
[1724708337353,2.72015079,63158.0,63157.0,0.00075204]
[1724708337556,2.89928247,63158.0,63157.0,0.00075204]
[1724708338935,2.90028247,63158.0,63157.0,0.00075204]
[1724708339137,3.00128247,63158.0,63157.0,0.00075204]
[1724708339541,2.98928247,63158.0,63157.0,0.00075204]
[1724708339727,2.97528247,63158.0,63157.0,0.00075204]
[1724708340133,3.00328247,63158.0,63157.0,0.00075204]
[1724708340335,2.98928247,63158.0,63157.0,0.00075204]
[1724708340547,1.78106042,63144.0,63140.0,0.00823]
[1724708340690,2.31693127,63144.0,63140.0,0.00823]
[1724708340895,2.19986368,63144.0,63140.0,0.00823]
[1724708341096,2.31692637,63144.0,63140.0,0.00823]
[1724708341722,2.33092637,63144.0,63140.0,0.00823]
[1724708342333,2.21386368,63144.0,63140.0,0.00823]
[1724708342741,2.22786368,63144.0,63140.0,0.00823]
[1724708342949,2.22886368,63144.0,63140.0,0.00823]
[1724708343270,2.20186368,63144.0,63140.0,0.00823]
[1724708343495,1.674234,63143.0,63142.0,0.00057895]
[1724708343699,2.09303726,63143.0,63142.0,0.00057895]
[1724708346264,2.12103726,63143.0,63142.0,0.00057895]
[1724708346437,2.22394948,63143.0,63142.0,0.00057895]
[1724708346676,2.18654244,63143.0,63142.0,0.00057895]
[1724708346797,2.37067412,63143.0,63142.0,0.00057895]
[1724708346992,2.03754369,63143.0,63142.0,0.00057895]
[1724708347206,2.13104887,63143.0,63142.0,0.00057895]
[1724708347405,2.25531113,63143.0,63142.0,0.00057895]
[1724708347668,2.34880992,63143.0,63142.0,0.00057895]
[1724708347879,2.25531113,63143.0,63142.0,0.00057895]
[1724708348547,2.34880992,63143.0,63142.0,0.00057895]
[1724708348749,2.10765067,63143.0,63142.0,0.00057895]
[1724708350098,2.10865067,63143.0,63142.0,0.00057895]
[1724708350504,1.88241201,63143.0,63142.0,0.00057895]
[1724708351740,2.20015301,63143.0,63142.0,0.00057895]
[1724708351923,1.564257,63142.0,63141.0,0.00821827]
[1724708352127,2.06092212,63142.0,63141.0,0.00821827]
[1724708352543,2.15431263,63142.0,63141.0,0.00821827]
[1724708353097,2.16831263,63142.0,63141.0,0.00821827]
[1724708353299,2.16831263,63142.0,63140.0,0.00823]
[1724708353300,2.18231263,63142.0,63140.0,0.0012412]
[1724708353484,2.2690914,63141.0,63140.0,0.0012412]
[1724708353688,2.51332669,63141.0,63140.0,0.0012412]
[1724708354539,2.63003768,63141.0,63140.0,0.0012412]
[1724708354743,2.30026103,63141.0,63140.0,0.0012412]
[1724708354948,2.72967376,63141.0,63140.0,0.0012412]
[1724708355120,2.61296277,63141.0,63140.0,0.0012412]
[1724708355325,2.72967376,63141.0,63140.0,0.0012412]
[1724708355542,2.61296277,63141.0,63140.0,0.0012412]
[1724708356242,2.64096277,63141.0,63140.0,0.0012412]
[1724708356606,2.73427694,63141.0,63140.0,0.0012412]
[1724708356811,2.74827694,63141.0,63140.0,0.0012412]
[1724708359121,2.7715891,63141.0,63140.0,0.0012412]
[1724708359357,2.7715891,63141.0,63135.0,0.000824]
[1724708359358,1.427492,63136.0,63135.0,0.000824]
[1724708359593,2.3861385,63136.0,63135.0,0.000824]
[1724708359826,2.36279585,63136.0,63135.0,0.000824]
[1724708360051,2.35775017,63136.0,63135.0,1.807e-05]
[1724708360277,2.05681843,63136.0,63135.0,1.807e-05]
[1724708360498,2.42030574,63136.0,63135.0,1.807e-05]
[1724708360742,2.51380136,63136.0,63135.0,1.807e-05]
[1724708361227,2.28288589,63136.0,63135.0,1.807e-05]
[1724708361448,2.21295011,63136.0,63135.0,1.807e-05]
[1724708361685,2.05681843,63136.0,63135.0,1.807e-05]
[1724708361916,2.42021295,63136.0,63135.0,1.807e-05]
[1724708362585,2.43421295,63136.0,63135.0,1.807e-05]
[1724708363488,2.44821295,63136.0,63135.0,1.807e-05]
[1724708364236,2.47303534,63136.0,63135.0,1.807e-05]
[1724708364475,2.47284472,63136.0,63135.0,1.807e-05]
[1724708365413,2.58235788,63136.0,63135.0,1.807e-05]
[1724708365647,2.62896521,63136.0,63135.0,1.807e-05]
[1724708366342,2.58235788,63136.0,63135.0,1.807e-05]
[1724708366773,2.55753549,63136.0,63135.0,1.807e-05]
[1724708367263,2.62747194,63136.0,63135.0,1.807e-05]
[1724708367461,2.40140381,63136.0,63135.0,1.807e-05]
[1724708368241,2.47134026,63136.0,63135.0,1.807e-05]
[1724708368463,1.425649,63129.0,63128.0,0.000824]
[1724708368688,1.71577543,63129.0,63128.0,0.000824]
[1724708370575,1.72977543,63129.0,63128.0,0.000824]
[1724708370745,1.74177543,63129.0,63128.0,0.000824]
[1724708371727,1.78065891,63129.0,63128.0,0.000824]
[1724708372639,1.74177543,63129.0,63128.0,0.000824]
[1724708374529,1.63082701,63129.0,63128.0,0.131224]
[1724708374731,1.134838,63129.0,63128.0,0.235124]
[1724708376090,0.818027,63129.0,63128.0,0.235124]
[1724708376497,0.026,63129.0,63128.0,0.235124]
[1724708376696,0.026,63129.0,63128.0,0.42896224]
[1724708376897,0.026,63129.0,63128.0,0.27055424]
[1724708377098,0.026,63129.0,63128.0,0.74577824]
[1724708377580,0.014,63129.0,63128.0,0.74577824]
[1724708377864,0.316787,63134.0,63130.0,0.2343]
[1724708378042,0.47518,63134.0,63132.0,0.2343]
[1724708378197,0.158393,63134.0,63133.0,0.2343]
[1724708379092,0.1592984,63135.0,63134.0,0.2343]
[1724708381438,0.1742984,63135.0,63134.0,0.2343]
[1724708382290,0.4910794,63135.0,63134.0,0.2343]
[1724708382489,0.4910794,63135.0,63134.0,0.26973024]
[1724708382877,0.1742984,63135.0,63134.0,0.26973024]
[1724708383326,0.1742984,63135.0,63134.0,0.38067866]
[1724708384975,0.0159064,63135.0,63134.0,0.38067866]
[1724708386096,0.0089064,63135.0,63134.0,0.38067866]
[1724708387004,0.0089064,63135.0,63134.0,0.53907166]
[1724708387206,0.0009064,63135.0,63134.0,0.53907166]
[1724708387501,0.0029064,63135.0,63134.0,0.53907166]
[1724708388073,0.0029064,63135.0,63134.0,0.85585766]
[1724708388498,0.0029064,63135.0,63134.0,1.17264366]
[1724708388698,0.0029064,63135.0,63134.0,0.53907166]
[1724708389333,0.0029064,63135.0,63134.0,0.85585766]
[1724708390964,0.0029064,63135.0,63134.0,0.85668166]
[1724708391147,0.0029064,63135.0,63134.0,1.32964567]
[1724708392103,0.0009064,63135.0,63134.0,1.32964567]
[1724708392306,0.0039064,63135.0,63134.0,1.32964567]
[1724708392806,0.0029064,63135.0,63134.0,1.32964567]
[1724708393022,0.0039064,63135.0,63134.0,1.33164567]
[1724708393429,0.0019064,63135.0,63134.0,1.33164567]
[1724708393603,0.0019064,63135.0,63134.0,1.64843167]
[1724708393803,0.0019064,63135.0,63134.0,1.65043167]
[1724708393804,0.0029064,63135.0,63134.0,1.65043167]
[1724708394756,0.0029064,63135.0,63134.0,1.22269725]
[1724708394956,0.0029064,63135.0,63134.0,0.90591125]
[1724708395094,0.0029064,63135.0,63134.0,1.01685967]
[1724708400172,0.0029064,63135.0,63134.0,0.239124]
[1724708400444,0.4780774,63135.0,63134.0,0.239124]
[1724708401560,0.4780774,63135.0,63134.0,0.235124]
[1724708401561,0.4760774,63135.0,63134.0,0.235124]
[1724708401771,0.4760774,63135.0,63134.0,0.237124]
[1724708402162,0.4760774,63135.0,63134.0,0.245324]
[1724708402574,0.4760774,63135.0,63134.0,0.27052566]
[1724708403635,0.4760774,63135.0,63134.0,0.27252566]
[1724708412973,0.4760774,63135.0,63134.0,0.247324]
[1724708417054,0.1592964,63135.0,63134.0,0.247324]
[1724708418780,0.15910577,63135.0,63134.0,0.247324]
[1724708420033,0.47588677,63135.0,63134.0,0.247324]
[1724708421387,0.15910577,63135.0,63134.0,0.247324]
[1724708421591,0.47588677,63135.0,63134.0,0.247324]
[1724708421883,0.47588677,63135.0,63134.0,0.004824]
[1724708422321,0.79266777,63135.0,63134.0,0.004824]
[1724708423350,1.10944877,63135.0,63134.0,0.004824]
[1724708424488,1.17976063,63135.0,63134.0,0.004824]
[1724708425942,1.10944877,63135.0,63134.0,0.002824]
[1724708426553,1.45973589,63135.0,63134.0,0.002824]
[1724708426732,1.56683589,63135.0,63134.0,0.002824]
[1724708426888,1.56683589,63135.0,63134.0,0.000824]
[1724708427120,1.56683589,63135.0,63134.0,0.002824]
[1724708427323,1.56683589,63135.0,63134.0,0.003824]
[1724708427528,1.56683589,63135.0,63134.0,0.001824]
[1724708427750,1.56683589,63135.0,63134.0,0.000824]
[1724708427953,1.57183589,63135.0,63134.0,0.000824]
[1724708428126,1.57783589,63135.0,63134.0,0.000824]
[1724708428729,1.57283589,63135.0,63134.0,0.000824]
[1724708428953,1.56683589,63135.0,63134.0,0.000824]
[1724708429157,1.57183589,63135.0,63134.0,0.000824]
[1724708430516,1.57783589,63135.0,63134.0,0.000824]
[1724708430726,2.0507949,63135.0,63134.0,0.000824]
[1724708431459,2.50819962,63135.0,63134.0,0.000824]
[1724708431658,2.67473608,63135.0,63134.0,0.000824]
[1724708433277,2.66873608,63135.0,63134.0,0.000824]
[1724708433476,2.69354546,63135.0,63134.0,0.000824]
[1724708433687,2.84674715,63135.0,63134.0,0.000824]
[1724708433888,2.70254546,63135.0,63134.0,2.543e-05]
[1724708434139,2.71654546,63135.0,63134.0,2.543e-05]
[1724708434338,2.86052427,63135.0,63134.0,2.543e-05]
[1724708434774,2.88852427,63135.0,63134.0,2.543e-05]
[1724708434973,2.54857383,63135.0,63134.0,2.543e-05]
[1724708435192,2.98558608,63135.0,63134.0,2.543e-05]
[1724708435558,2.98558608,63135.0,63123.0,0.00823]
[1724708435559,0.001,63127.0,63123.0,0.00823]
[1724708435768,0.83340242,63124.0,63123.0,0.00823]
[1724708435959,2.17005778,63124.0,63123.0,0.00823]
[1724708436332,2.78473845,63124.0,63123.0,0.00823]
[1724708436544,2.78473845,63124.0,63102.0,0.04923642]
[1724708436545,1.3301888,63118.0,63102.0,0.04923642]
[1724708436716,2.25198083,63118.0,63102.0,0.04923642]
[1724708437573,2.88571283,63118.0,63102.0,0.04923642]
[1724708438106,2.60006639,63118.0,63102.0,0.04923642]
[1724708438339,2.61406639,63118.0,63102.0,0.04923642]
[1724708439430,2.71672341,63118.0,63102.0,0.04923642]
[1724708439595,2.55203049,63118.0,63102.0,0.04923642]
[1724708439800,2.74622326,63118.0,63102.0,0.04923642]
[1724708440192,1.673439,63103.0,63102.0,0.04923642]
[1724708440340,1.94056543,63103.0,63102.0,0.04923642]
[1724708440543,1.94056543,63103.0,63095.0,0.00824]
[1724708440544,1.109332,63101.0,63095.0,0.00824]
[1724708440747,1.62908465,63101.0,63095.0,0.00824]
[1724708440924,1.65208412,63101.0,63095.0,0.00824]
[1724708441154,1.60546201,63101.0,63095.0,0.00824]
[1724708441327,1.73316201,63101.0,63095.0,0.00824]
[1724708441852,2.22820986,63101.0,63100.0,0.00137969]
[1724708442039,2.15832339,63101.0,63100.0,0.00137969]
[1724708443164,2.17232339,63101.0,63100.0,0.00137969]
[1724708443364,2.18632339,63101.0,63100.0,0.00137969]
[1724708443747,2.18632339,63101.0,63100.0,6.9e-07]
[1724708443748,2.55910996,63101.0,63100.0,6.9e-07]
[1724708443932,2.8151943,63101.0,63100.0,6.9e-07]
[1724708444128,2.74540707,63101.0,63100.0,6.9e-07]
[1724708444422,2.80590211,63101.0,63100.0,6.9e-07]
[1724708444609,2.79190211,63101.0,63100.0,6.9e-07]
[1724708444797,2.63577043,63101.0,63100.0,6.9e-07]
[1724708445038,2.64977043,63101.0,63100.0,6.9e-07]
[1724708445172,2.67460796,63101.0,63100.0,6.9e-07]
[1724708445380,2.67460796,63101.0,63091.0,0.0004]
[1724708445381,0.16030738,63092.0,63091.0,0.0004]
[1724708445731,0.79435138,63088.0,63087.0,0.0029733]
[1724708445930,1.61559481,63088.0,63087.0,0.0029733]
[1724708446131,1.63859481,63088.0,63087.0,0.0029733]
[1724708446333,1.95561181,63088.0,63087.0,0.0029733]
[1724708446537,2.11174349,63088.0,63087.0,0.0029733]
[1724708446739,2.42876049,63088.0,63087.0,0.0029733]
[1724708446942,2.27262881,63088.0,63087.0,0.0029733]
[1724708447151,1.427756,63080.0,63079.0,0.00824]
[1724708447326,1.82858243,63080.0,63079.0,0.00824]
[1724708447525,1.95938243,63080.0,63079.0,0.00824]
[1724708448065,2.12698978,63080.0,63079.0,0.00824]
[1724708448212,2.12779916,63080.0,63079.0,0.00824]
[1724708448428,2.44485616,63080.0,63079.0,0.00824]
[1724708448634,2.45685616,63080.0,63079.0,0.00824]
[1724708449063,2.61298784,63080.0,63079.0,0.00824]
[1724708449228,2.55685616,63080.0,63079.0,0.00824]
[1724708449656,2.57085616,63080.0,63079.0,0.00824]
[1724708449860,2.55885616,63080.0,63079.0,0.00824]
[1724708450057,2.54485616,63080.0,63079.0,0.00824]
[1724708450297,2.57285616,63080.0,63079.0,0.00824]
[1724708450509,2.72898784,63080.0,63079.0,0.00824]
[1724708450683,2.24179916,63080.0,63079.0,0.00824]
[1724708451161,2.25579916,63080.0,63079.0,0.00824]
[1724708451571,2.57285616,63080.0,63079.0,0.00824]
[1724708453605,2.55885616,63080.0,63079.0,0.00205291]
[1724708454011,2.57285616,63080.0,63079.0,0.00205291]
[1724708454213,2.71498784,63080.0,63079.0,0.00205291]
[1724708454415,1.42874538,63072.0,63071.0,0.0063383]
[1724708454629,2.10417916,63072.0,63071.0,0.0063383]
[1724708454828,2.20417916,63072.0,63071.0,0.0063383]
[1724708455027,2.54427616,63072.0,63071.0,0.0063383]
[1724708455229,2.70040784,63072.0,63071.0,0.0063383]
[1724708456156,2.71440784,63072.0,63071.0,0.0063383]
[1724708456361,2.70040784,63072.0,63071.0,0.0063383]
[1724708456768,2.72840784,63072.0,63071.0,0.0063383]
[1724708456991,2.71440784,63072.0,63071.0,0.0063383]
[1724708457637,2.71440784,63072.0,63071.0,3e-07]
[1724708457638,3.21250484,63072.0,63071.0,3e-07]
[1724708458530,2.06297238,63071.0,63070.0,3e-07]
[1724708458732,2.84233977,63071.0,63070.0,3e-07]
[1724708459505,2.86719088,63071.0,63070.0,3e-07]
[1724708460154,1.94387615,63060.0,63059.0,0.00824]
[1724708460356,2.22305416,63060.0,63059.0,0.00824]
[1724708460999,2.24790597,63060.0,63059.0,0.00824]
[1724708461408,2.40403765,63060.0,63059.0,0.00824]
[1724708461966,2.41803765,63060.0,63059.0,0.00824]
[1724708462382,2.27164927,63060.0,63059.0,0.00824]
[1724708462578,2.43022827,63060.0,63059.0,0.00824]
[1724708466397,2.03779659,63060.0,63059.0,1.00824]
[1724708466643,2.17289659,63060.0,63059.0,1.00824]
[1724708467224,1.39423101,63060.0,63059.0,1.00824]
[1724708467425,1.39423101,63060.0,63059.0,1.24964]
[1724708468820,0.97707301,63060.0,63059.0,1.24964]
[1724708469020,0.820895,63060.0,63059.0,1.24964]
[1724708469262,0.503737,63060.0,63059.0,1.24964]
[1724708470094,0.503737,63060.0,63059.0,1.25164]
[1724708470659,0.503737,63060.0,63059.0,1.25064]
[1724708470995,0.489737,63060.0,63059.0,1.25064]
[1724708471208,0.172579,63060.0,63059.0,1.25064]
[1724708471424,0.185579,63060.0,63059.0,1.25064]
[1724708471569,0.171579,63060.0,63059.0,1.25064]
[1724708471772,0.013,63060.0,63059.0,1.25064]
[1724708471972,0.024,63060.0,63059.0,1.25064]
[1724708472182,0.182579,63060.0,63059.0,1.25064]
[1724708472383,0.024,63060.0,63059.0,1.25064]
[1724708472860,0.182579,63060.0,63059.0,1.25064]
[1724708473076,0.171579,63060.0,63059.0,1.25064]
[1724708473323,0.182579,63060.0,63059.0,1.25064]
[1724708473639,0.182579,63060.0,63059.0,1.726384]
[1724708473640,0.02380922,63060.0,63059.0,1.726384]
[1724708474056,0.011,63060.0,63059.0,1.726384]
[1724708474414,0.011,63060.0,63059.0,1.409221]
[1724708475180,0.475679,63068.0,63067.0,0.2443]
[1724708475370,0.158561,63068.0,63067.0,0.2443]
[1724708475725,0.158557,63069.0,63068.0,0.2433]
[1724708476084,0.47567,63069.0,63068.0,0.2845867]
[1724708476251,0.158557,63069.0,63068.0,0.2845867]
[1724708477057,0.47567,63069.0,63068.0,0.2845867]
[1724708477261,0.47567,63069.0,63068.0,0.2443]
[1724708478044,0.47867,63069.0,63068.0,0.2443]
[1724708478244,0.48667,63069.0,63068.0,0.2443]
[1724708478768,0.47867,63069.0,63068.0,0.2443]
[1724708479017,0.47867,63069.0,63068.0,0.2845871]
[1724708479018,0.005,63069.0,63068.0,0.2845871]
[1724708479217,0.005,63069.0,63068.0,0.7602641]
[1724708479988,0.003,63069.0,63068.0,0.7602641]
[1724708480820,0.158546,63073.0,63070.0,0.2373]
[1724708481023,0.158539,63076.0,63075.0,0.001]
[1724708481245,0.158539,63076.0,63075.0,0.2526548]
[1724708482257,0.475616,63076.0,63075.0,0.2526548]
[1724708482454,0.001,63076.0,63075.0,0.2526548]
[1724708482830,0.001,63076.0,63075.0,0.2536548]
[1724708483036,0.001,63076.0,63075.0,0.4121958]
[1724708483235,0.316944,63103.0,63086.0,0.71224]
[1724708483439,0.20550983,63117.0,63086.0,1.18544501]
[1724708483440,0.46876099,63097.0,63086.0,1.18544501]
[1724708483697,0.316941,63104.0,63086.0,1.23571816]
[1724708483876,0.158474,63102.0,63086.0,1.27600526]
[1724708484200,0.158469,63104.0,63086.0,1.22573211]
[1724708484354,0.633824,63109.0,63086.0,1.22573211]
[1724708484355,0.158466,63105.0,63086.0,1.22573211]
[1724708484557,0.316912,63109.0,63108.0,0.001]
[1724708484753,0.475369,63109.0,63108.0,0.1044]
[1724708485041,0.158457,63109.0,63108.0,0.1044]
[1724708485217,0.158457,63109.0,63108.0,0.1203548]
[1724708485655,0.316894,63113.0,63108.0,0.1203548]
[1724708485855,0.316899,63112.0,63109.0,0.1323]
[1724708486061,0.475339,63113.0,63112.0,0.001]
[1724708488174,0.00906401,63124.0,63112.0,0.001]
[1724708488175,0.16748201,63124.0,63123.0,0.2427]
[1724708488515,0.16748201,63124.0,63123.0,0.2974816]
[1724708489660,0.00906401,63124.0,63123.0,1.0895836]
[1724708490629,0.00906401,63124.0,63123.0,1.0915836]
[1724708490833,0.00906401,63124.0,63123.0,1.14739402]
[1724708491040,0.00906401,63124.0,63123.0,1.14539402]
[1724708491241,0.02006401,63124.0,63123.0,1.14539402]